bitfinex/quotes_ETHUSD_20241122
["timestamp","ask_amount","ask_price","bid_price","bid_amount"]
[1732241906449,0.04383128,3328.8,3328.3,0.8124]
[1732241906653,0.04383128,3328.8,3328.2,0.33034381]
[1732241906654,0.01,3329.3,3328.4,3.0144]
[1732241906877,0.04372098,3328.7,3328.4,3.0144]
[1732241907078,0.01,3329.3,3328.4,3.0144]
[1732241907379,0.04372098,3328.7,3328.4,3.0144]
[1732241907590,0.01,3329.3,3328.4,3.0144]
[1732241907745,0.31435383,3329.3,3328.4,3.0144]
[1732241907947,0.04372098,3328.7,3328.4,3.0144]
[1732241908299,0.03006828,3329.2,3328.4,3.0144]
[1732241908640,0.04416216,3329.1,3328.4,3.0144]
[1732241908968,0.01,3329.3,3328.4,3.0144]
[1732241909285,0.01,3329.0,3328.4,3.0144]
[1732241909583,0.01,3328.7,3328.4,3.0144]
[1732241909894,3.01435,3328.5,3328.4,3.0144]
[1732241910042,0.01,3328.5,3328.4,3.0144]
[1732241913489,3.01435,3328.5,3328.4,3.0144]
[1732241913643,3.64627928,3328.5,3328.4,3.0144]
[1732241914483,3.616211,3328.5,3328.4,3.0144]
[1732241916083,3.64627928,3328.5,3328.4,3.0144]
[1732241916257,7.41247928,3328.5,3328.4,3.0144]
[1732241916458,7.382411,3328.5,3328.4,3.0144]
[1732241918756,0.611861,3328.5,3328.4,3.0144]
[1732241918962,3.00417,3328.7,3328.4,3.3147]
[1732241918963,3.01417,3328.7,3328.4,3.3147]
[1732241919146,0.01,3328.7,3328.4,3.3147]
[1732241919341,0.0591966,3328.7,3328.4,3.3147]
[1732241919546,0.01,3329.4,3328.4,3.3147]
[1732241919795,0.01,3329.4,3328.6,0.3003]
[1732241919950,3.01382,3329.1,3328.6,0.3003]
[1732241920258,0.01,3329.1,3328.8,0.3003]
[1732241920448,0.01,3329.3,3329.0,0.3003]
[1732241920652,4.34094295,3329.5,3329.1,3.3041]
[1732241920653,3.00372,3329.2,3329.1,3.3041]
[1732241920994,6.57846295,3329.2,3329.1,3.3041]
[1732241921683,3.00362,3329.4,3329.1,3.3041]
[1732241922484,4.34094295,3329.5,3329.1,3.3041]
[1732241922485,7.34444295,3329.5,3329.1,3.3041]
[1732241922694,7.77853724,3329.5,3329.1,3.3041]
[1732241922864,3.00356,3329.4,3329.1,3.3041]
[1732241923995,9.57846295,3329.2,3329.1,3.3041]
[1732241924153,10.83968007,3329.2,3329.1,3.3041]
[1732241924778,10.83968007,3329.2,3329.1,3.0038]
[1732241926261,9.57846295,3329.2,3329.1,3.0038]
[1732241926581,3.0,3329.4,3329.1,4.0827]
[1732241926757,0.03006828,3329.3,3329.1,4.0827]
[1732241927460,10.34986295,3329.2,3329.1,3.3041]
[1732241928170,6.57474295,3329.2,3329.1,3.3041]
[1732241929113,9.57846295,3329.2,3329.1,3.3041]
[1732241935567,6.57474295,3329.2,3329.1,3.3041]
[1732241936322,10.34986295,3329.2,3329.1,3.3041]
[1732241936612,11.68520425,3329.2,3329.1,3.3041]
[1732241938708,10.91380425,3329.2,3329.1,3.3041]
[1732241939208,7.91008425,3329.2,3329.1,3.3041]
[1732241939620,6.57474295,3329.2,3329.1,3.3041]
[1732241939913,6.57812295,3329.6,3329.1,3.3041]
[1732241940116,3.0,3329.5,3329.1,3.3041]
[1732241940265,6.57812295,3329.6,3329.1,3.3041]
[1732241940467,0.03006828,3329.5,3329.1,3.3041]
[1732241940672,3.00363,3329.4,3329.1,3.3041]
[1732241940970,3.03369828,3329.3,3329.1,3.3041]
[1732241941283,3.00372,3329.2,3329.1,3.3041]
[1732241941704,3.03369828,3329.3,3329.1,3.3041]
[1732241941870,3.0,3329.4,3329.1,3.3041]
[1732241942074,3.57474295,3329.2,3329.1,3.3041]
[1732241942385,6.57846295,3329.2,3329.1,3.3041]
[1732241944096,3.57474295,3329.2,3329.1,3.3041]
[1732241944288,6.57846295,3329.2,3329.1,3.3041]
[1732241944986,10.34986295,3329.2,3329.1,3.0038]
[1732241945226,11.06148205,3329.2,3329.1,3.0038]
[1732241947820,10.29008205,3329.2,3329.1,3.0038]
[1732241948415,11.06148205,3329.2,3329.1,3.0038]
[1732241948932,0.7714,3328.0,3327.4,0.3003]
[1732241949106,3.57474295,3327.5,3327.4,0.3003]
[1732241949613,3.60481123,3327.5,3327.4,0.3003]
[1732241950029,3.57474295,3327.8,3327.3,0.3003]
[1732241950335,3.57474295,3327.8,3327.2,0.7774]
[1732241950336,3.57474295,3327.8,3327.5,0.3003]
[1732241950486,0.7785,3327.6,3327.4,3.0053]
[1732241950729,3.57474295,3328.1,3327.4,3.7827]
[1732241950929,3.0,3328.0,3327.4,3.7827]
[1732241951159,3.57474295,3328.1,3327.4,3.7827]
[1732241951364,3.0,3328.0,3327.4,3.7827]
[1732241951676,3.0,3328.0,3327.5,0.3003]
[1732241951860,3.0,3328.0,3327.7,0.3003]
[1732241952342,3.0,3328.0,3327.9,0.3003]
[1732241952544,3.57474295,3328.1,3327.9,0.3003]
[1732241952747,3.57474295,3328.1,3327.9,3.3052]
[1732241952945,3.57474295,3328.4,3328.1,0.3003]
[1732241953160,3.57474295,3328.4,3328.3,0.3003]
[1732241953729,6.57918295,3328.4,3328.3,0.3003]
[1732241954675,9.57918295,3328.4,3328.3,0.3003]
[1732241957781,3.0,3328.6,3328.3,1.0752]
[1732241958078,3.0,3328.4,3328.3,4.0797]
[1732241959173,3.0,3328.4,3328.3,3.3048]
[1732241959682,3.57474295,3328.5,3328.3,3.3048]
[1732241960742,3.0,3328.4,3328.3,3.3048]
[1732241961392,6.85620828,3328.4,3328.3,3.3048]
[1732241961592,6.82614,3328.4,3328.3,3.3048]
[1732241962148,10.40088295,3328.4,3328.3,3.0045]
[1732241962401,3.82676,3327.8,3327.4,0.3003]
[1732241962690,3.57474295,3327.5,3327.4,0.3003]
[1732241963250,3.57474295,3327.5,3327.1,0.3003]
[1732241963891,3.00484,3328.0,3327.1,0.3003]
[1732241963892,3.57474295,3327.8,3327.1,0.3003]
[1732241964094,3.57474295,3327.8,3327.1,0.33035372]
[1732241964391,3.57474295,3328.1,3327.7,0.3003]
[1732241965294,3.57474295,3328.1,3327.9,0.3003]
[1732241966275,3.57474295,3328.1,3328.0,3.3051]
[1732241971106,10.41165295,3328.1,3328.0,3.0048]
[1732241974094,6.57474295,3328.1,3328.0,3.0048]
[1732241974297,6.57474295,3328.1,3328.0,3.0051]
[1732241974493,0.8322,3328.5,3328.0,3.0051]
[1732241974813,3.0,3328.2,3328.0,3.0051]
[1732241975225,0.8322,3328.8,3328.0,3.0051]
[1732241975379,3.57474295,3328.5,3328.0,3.38761]
[1732241975580,3.83634,3328.8,3328.0,3.0051]
[1732241975581,0.8322,3328.8,3328.0,3.0051]
[1732241975812,3.57474295,3328.6,3328.0,3.0051]
[1732241976024,3.57474295,3328.6,3328.0,3.38761]
[1732241976180,3.57474295,3328.6,3328.2,0.3003]
[1732241976382,3.57474295,3328.6,3328.4,0.3003]
[1732241976581,6.57474295,3328.6,3328.5,3.6047]
[1732241976830,9.57900295,3328.6,3328.5,3.6047]
[1732241977127,10.41120295,3328.6,3328.5,3.6047]
[1732241977476,7.40694295,3328.6,3328.5,3.6047]
[1732241977987,6.57474295,3328.6,3328.5,3.6047]
[1732241979011,6.57474295,3328.6,3328.5,3.3044]
[1732241981119,3.0,3328.8,3328.5,3.71684]
[1732241982302,3.0,3328.8,3328.5,3.3044]
[1732241982303,3.57474295,3328.6,3328.5,3.3044]
[1732241983101,3.0,3328.8,3328.5,3.3044]
[1732241983534,3.57474295,3328.9,3328.5,3.3044]
[1732241984840,3.57474295,3328.9,3328.6,0.7997]
[1732241984991,3.57474295,3328.9,3328.7,3.3042]
[1732241985421,6.57474295,3329.2,3328.7,3.3042]
[1732241985825,3.57474295,3329.5,3328.8,0.7997]
[1732241986040,3.57474295,3329.5,3328.8,1.21009]
[1732241986198,3.57474295,3329.5,3328.9,3.304]
[1732241986404,3.57474295,3329.8,3329.0,0.7997]
[1732241986628,3.57474295,3329.8,3329.1,3.3038]
[1732241986936,3.57474295,3329.8,3329.1,3.71715352]
[1732241987506,0.005,3330.0,3329.1,3.71715352]
[1732241987507,3.57474295,3329.5,3329.1,3.71715352]
[1732241987704,3.57474295,3329.5,3329.1,3.3038]
[1732241991607,3.005,3330.0,3329.2,0.7997]
[1732241991902,3.57474295,3329.8,3329.3,3.3036]
[1732241992109,3.57474295,3329.5,3329.3,3.3036]
[1732241993958,6.60481123,3329.5,3329.4,0.3003]
[1732241994126,6.60481123,3329.5,3329.3,3.3036]
[1732241994127,3.0,3329.4,3329.3,3.3036]
[1732241994463,3.03006828,3329.4,3329.3,3.3036]
[1732241995246,3.0,3329.6,3329.3,3.6039]
[1732241995448,3.57474295,3329.7,3329.3,3.6039]
[1732241995744,6.57974295,3330.0,3329.3,3.6039]
[1732241996108,6.57974295,3330.0,3329.5,0.3003]
[1732241996447,6.57974295,3330.0,3329.7,0.3003]
[1732241996824,6.57974295,3330.0,3329.9,0.3003]
[1732242000554,10.41394295,3330.0,3329.8,3.3032]
[1732242000802,6.86435828,3329.9,3329.8,3.3032]
[1732242000913,6.83429,3329.9,3329.8,3.3032]
[1732242004767,6.83429,3329.9,3329.1,0.3003]
[1732242004768,6.83492,3329.2,3329.1,0.3003]
[1732242005057,3.00441,3328.5,3328.1,0.3003]
[1732242005218,3.0045,3328.4,3328.1,0.3003]
[1732242005418,3.0,3329.2,3325.4,0.03004459]
[1732242005419,3.0,3328.8,3327.2,0.3003]
[1732242005620,3.0,3329.1,3328.2,0.3003]
[1732242005857,0.03006828,3329.0,3328.2,0.3003]
[1732242006057,9.57860295,3329.1,3328.2,0.3003]
[1732242006376,3.03396828,3329.0,3328.2,0.3003]
[1732242006740,0.03006828,3329.0,3328.2,0.3003]
[1732242006962,0.8312,3329.3,3327.6,0.3003]
[1732242007128,3.0,3329.4,3328.2,0.3003]
[1732242007329,0.03006828,3329.3,3328.6,0.3003]
[1732242007659,3.60481123,3329.5,3328.6,0.3003]
[1732242008238,3.00354,3329.4,3328.6,0.3003]
[1732242008445,3.0,3329.2,3328.6,0.3003]
[1732242008660,0.03006828,3329.1,3328.6,0.3003]
[1732242008882,0.03006828,3329.1,3328.5,0.8097]
[1732242009334,3.03389828,3329.1,3328.5,0.8097]
[1732242009535,3.03389828,3329.1,3328.3,1.1094]
[1732242009536,3.83512,3329.0,3328.3,1.1094]
[1732242009735,3.57474295,3329.1,3328.3,1.1094]
[1732242010572,3.0,3329.3,3328.4,0.8097]
[1732242010869,3.0,3329.4,3328.5,0.2997]
[1732242011052,6.00361,3329.4,3328.5,0.2997]
[1732242011254,6.03367828,3329.4,3328.5,0.2997]
[1732242011630,3.00396,3329.0,3328.5,0.2997]
[1732242011831,3.0,3328.9,3328.5,0.2997]
[1732242012032,3.0,3329.0,3328.5,0.2997]
[1732242012278,0.03006828,3329.1,3328.5,0.2997]
[1732242012473,6.00392,3329.0,3328.5,0.2997]
[1732242012629,0.03006828,3328.9,3328.5,0.2997]
[1732242013387,3.00411,3328.8,3328.1,0.2997]
[1732242013591,0.03006828,3328.9,3328.1,1.0626]
[1732242013790,3.0,3328.8,3328.1,1.0626]
[1732242014086,3.00434,3328.6,3328.1,1.0626]
[1732242014470,3.0,3328.6,3328.1,1.0626]
[1732242015569,3.0,3329.0,3328.1,1.0626]
[1732242016145,3.0,3329.0,3328.2,0.7629]
[1732242016363,3.0,3329.0,3328.2,1.0626]
[1732242017176,0.03006828,3328.9,3328.2,1.0626]
[1732242017553,3.0,3329.4,3328.3,1.0626]
[1732242017871,3.03006828,3329.4,3328.5,0.2997]
[1732242018078,6.03360828,3329.4,3328.5,0.2997]
[1732242018288,3.03006828,3329.4,3328.5,0.2997]
[1732242018794,3.0,3329.1,3328.5,0.2997]
[1732242018979,0.03006828,3329.0,3328.5,0.2997]
[1732242019286,3.7936,3328.9,3328.5,0.2997]
[1732242019486,0.03006828,3328.8,3328.5,0.2997]
[1732242019995,6.79765,3328.9,3327.1,0.03004333]
[1732242019996,0.7936,3328.9,3328.1,0.2997]
[1732242020193,6.00393,3329.0,3328.1,0.2997]
[1732242020505,3.03006828,3329.0,3328.1,0.2997]
[1732242020841,3.0,3329.0,3328.3,0.2997]
[1732242021105,3.0,3329.4,3328.5,0.2997]
[1732242021255,6.00354,3329.4,3328.5,0.2997]
[1732242021455,6.03360828,3329.4,3328.5,0.2997]
[1732242022658,3.03006828,3329.4,3328.5,0.2997]
[1732242023153,6.03362828,3329.4,3328.1,0.2997]
[1732242023388,6.03362828,3329.4,3328.5,0.2997]
[1732242023389,3.03006828,3329.4,3328.5,0.2997]
[1732242023896,3.0,3329.4,3328.7,0.2997]
[1732242024069,3.0,3329.4,3328.9,0.2997]
[1732242024266,3.03006828,3329.4,3328.9,0.2997]
[1732242025454,3.0,3329.4,3328.9,0.2997]
[1732242025655,3.03006828,3329.4,3328.9,0.2997]
[1732242026230,3.0,3329.4,3328.9,0.2997]
[1732242028312,6.03361828,3329.4,3328.9,0.2997]
[1732242028900,9.57855295,3329.1,3329.0,0.2997]
[1732242029106,3.0,3329.0,3328.5,0.2997]
[1732242029300,3.03006828,3329.0,3328.5,0.2997]
[1732242030029,3.0,3329.0,3328.6,1.1329]
[1732242031028,6.57474295,3329.5,3328.6,1.1329]
[1732242031594,6.57474295,3329.5,3328.7,0.8332]
[1732242031825,6.57474295,3329.5,3328.8,0.2997]
[1732242032008,6.57474295,3329.5,3329.0,0.2997]
[1732242032520,0.06177122,3329.4,3329.0,0.2997]
[1732242034489,6.60791123,3329.9,3329.0,0.2997]
[1732242034706,3.57474295,3329.5,3329.0,0.2997]
[1732242034910,0.03006828,3329.4,3329.0,0.2997]
[1732242035094,0.03006828,3329.4,3327.5,0.01]
[1732242035095,6.57474295,3329.1,3328.7,0.2997]
[1732242035405,0.09184727,3329.4,3328.7,0.2997]
[1732242035406,0.0615208,3329.0,3328.7,0.2997]
[1732242035798,3.0,3329.4,3328.7,0.2997]
[1732242036011,0.06145657,3328.9,3328.7,0.2997]
[1732242036210,3.0,3329.4,3328.7,0.2997]
[1732242036406,0.06138271,3328.8,3328.7,0.2997]
[1732242036639,0.03006828,3329.3,3328.7,0.2997]
[1732242036828,0.06138271,3328.8,3328.7,0.2997]
[1732242037033,0.03006828,3329.3,3328.7,0.2997]
[1732242037203,0.06138271,3328.8,3328.7,0.2997]
[1732242037404,6.03364828,3329.4,3328.7,0.2997]
[1732242037645,0.06138271,3328.8,3328.1,0.2997]
[1732242037834,3.0,3329.4,3328.5,0.2997]
[1732242038141,3.00311,3329.9,3329.1,0.2997]
[1732242038142,3.0,3329.8,3329.1,0.2997]
[1732242038342,6.57785295,3329.9,3329.1,0.2997]
[1732242038544,3.00329,3329.7,3329.1,0.2997]
[1732242038853,0.03006828,3329.6,3329.1,0.2997]
[1732242039204,6.57785295,3329.9,3329.1,0.2997]
[1732242039654,3.06203287,3329.8,3329.1,0.2997]
[1732242041839,3.06203287,3329.8,3328.2,0.2997]
[1732242042158,3.06203287,3329.8,3329.2,0.2997]
[1732242042159,0.06203287,3329.8,3329.2,0.2997]
[1732242042314,0.005,3330.0,3329.4,0.2997]
[1732242042515,0.06210941,3329.9,3329.4,0.2997]
[1732242043355,0.03006828,3329.8,3329.4,0.2997]
[1732242043648,0.06198104,3329.7,3329.5,0.2997]
[1732242044010,3.0,3329.8,3329.5,0.2997]
[1732242044242,0.061916,3329.6,3329.5,0.2997]
[1732242044452,3.0,3329.8,3329.5,0.2997]
[1732242044751,0.03006828,3329.7,3329.1,0.2997]
[1732242044937,6.03330828,3329.8,3329.1,0.2997]
[1732242045734,3.03006828,3329.8,3329.1,0.2997]
[1732242045953,6.03325828,3329.8,3329.1,0.2997]
[1732242046642,0.005,3330.0,3329.5,0.2997]
[1732242046828,0.06198002,3329.7,3329.6,1.1228]
[1732242047149,0.005,3330.0,3329.6,1.1228]
[1732242047354,0.06020484,3329.9,3329.6,1.1228]
[1732242049055,0.06020484,3329.9,3329.8,1.1228]
[1732242049269,0.005,3331.4,3330.5,0.2997]
[1732242049557,0.005,3331.4,3330.7,0.2997]
[1732242050559,0.005,3331.4,3330.8,0.03002057]
[1732242050720,0.005,3331.4,3330.8,4.10632057]
[1732242050918,0.005,3331.4,3330.8,4.51695263]
[1732242052849,0.005,3331.4,3330.8,4.0763]
[1732242053470,0.005,3331.4,3330.8,4.6263]
[1732242053826,0.005,3331.4,3330.8,4.3266]
[1732242055865,0.03006828,3332.7,3332.3,8.5966453]
[1732242056024,0.03006828,3332.7,3331.8,0.7743]
[1732242056220,0.05617935,3332.6,3331.8,0.7743]
[1732242057058,3.76663,3333.1,3331.9,3.03131006]
[1732242057277,0.05611443,3332.5,3331.9,3.41187107]
[1732242057465,3.00039,3332.9,3331.9,3.0013]
[1732242057780,3.0005,3332.8,3331.9,3.0013]
[1732242057938,0.05630918,3332.8,3331.9,3.0013]
[1732242058260,3.0,3332.5,3331.9,3.0013]
[1732242058443,0.03006828,3332.4,3331.9,3.0013]
[1732242058676,0.08603046,3332.4,3331.9,3.0013]
[1732242058873,3.08694046,3332.4,3331.9,3.0013]
[1732242059090,6.00094,3332.3,3331.9,3.0013]
[1732242059375,0.05412459,3332.2,3332.0,0.7743]
[1732242059593,0.7664,3333.3,3332.0,1.07443]
[1732242059758,0.05477289,3333.2,3332.1,3.0011]
[1732242060801,3.00031,3333.0,3332.1,3.0011]
[1732242060955,0.05281135,3332.9,3332.3,0.7743]
[1732242061255,0.15621348,3333.9,3332.5,0.7743]
[1732242061459,0.15621348,3333.9,3332.7,0.7743]
[1732242061673,0.05339537,3333.8,3332.8,0.02999799]
[1732242061880,0.08346365,3333.8,3332.8,3.0005]
[1732242062098,3.62813832,3333.8,3332.8,3.0005]
[1732242062261,3.0,3333.4,3332.8,3.0005]
[1732242062457,5.9998,3333.6,3332.8,3.0005]
[1732242062658,0.0530742,3333.3,3332.8,3.0005]
[1732242062909,6.02986828,3333.6,3332.8,3.0005]
[1732242063083,0.0530093,3333.2,3332.8,3.0005]
[1732242063270,3.0,3333.4,3332.8,3.0005]
[1732242063784,0.0530742,3333.3,3332.8,3.0005]
[1732242063957,3.0530742,3333.3,3332.8,3.0005]
[1732242064394,0.0530742,3333.3,3332.8,3.0005]
[1732242064565,6.57438295,3333.8,3332.8,3.0005]
[1732242064566,3.0,3333.8,3332.8,3.0005]
[1732242064765,3.0,3333.6,3332.8,3.0005]
[1732242065098,0.05320398,3333.5,3332.8,3.0005]
[1732242065389,3.0,3333.7,3332.8,3.0005]
[1732242065591,0.05327859,3333.6,3332.8,3.0005]
[1732242065796,0.05327859,3333.6,3332.8,3.40797913]
[1732242065999,0.05327859,3333.6,3332.9,0.7743]
[1732242066208,0.7664,3334.4,3333.1,0.2997]
[1732242066209,2.99913,3334.3,3333.1,0.2997]
[1732242066357,3.57474295,3334.9,3333.2,0.32969466]
[1732242066358,0.04803818,3334.2,3333.2,0.32969466]
[1732242066563,2.99894,3334.6,3333.4,0.7743]
[1732242066862,0.04823274,3334.5,3333.6,0.7743]
[1732242067109,2.9991,3334.4,3333.7,2.9997]
[1732242067261,0.04823274,3334.5,3333.7,2.9997]
[1732242067461,0.04810304,3334.3,3333.7,2.9997]
[1732242067663,0.04816789,3334.4,3333.7,2.9997]
[1732242067897,0.04803818,3334.2,3333.8,0.7743]
[1732242068113,0.04810304,3334.3,3333.8,0.7743]
[1732242068403,0.04803818,3334.2,3333.9,2.9995]
[1732242068606,5.99877,3334.7,3333.9,2.9995]
[1732242068764,0.04829758,3334.6,3333.9,2.9995]
[1732242069108,0.7664,3334.1,3333.9,2.9995]
[1732242069262,3.76572,3334.1,3333.9,2.9995]
[1732242069602,3.04730845,3334.0,3333.9,2.9995]
[1732242069841,0.04790845,3334.0,3333.9,2.9995]
[1732242070218,2.99856,3335.0,3333.9,2.9995]
[1732242070219,5.99896,3334.5,3333.9,2.9995]
[1732242070432,0.04790845,3334.0,3333.9,2.9995]
[1732242070587,5.99896,3334.5,3333.9,2.9995]
[1732242070920,3.0,3334.2,3333.9,2.9995]
[1732242071073,6.04726789,3334.4,3333.9,2.9995]
[1732242071403,2.99931,3334.1,3333.9,2.9995]
[1732242071702,0.04790845,3334.0,3333.9,2.9995]
[1732242072117,5.99905,3334.4,3333.9,2.9995]
[1732242072269,0.04790845,3334.0,3333.9,2.9995]
[1732242072472,3.0,3334.2,3333.9,2.9995]
[1732242072776,3.0,3334.3,3333.9,2.9995]
[1732242072963,0.04803818,3334.2,3333.9,2.9995]
[1732242073164,3.0,3334.4,3333.9,2.9995]
[1732242073365,0.04810304,3334.3,3333.9,2.9995]
[1732242073866,3.0,3334.3,3333.9,2.9995]
[1732242074089,0.04803818,3334.2,3333.9,2.9995]
[1732242074303,3.04803818,3334.2,3333.9,2.9995]
[1732242074612,2.99913,3334.3,3333.9,2.9995]
[1732242074613,3.04729332,3334.1,3333.9,2.9995]
[1732242074816,3.02946828,3334.0,3333.9,2.9995]
[1732242075022,3.04730845,3334.0,3333.9,2.9995]
[1732242075569,6.04730845,3334.0,3333.9,2.9995]
[1732242076310,7.40220845,3334.0,3333.9,2.9995]
[1732242076525,0.8049,3333.2,3332.5,0.8282]
[1732242076828,3.04734763,3333.1,3332.5,0.8282]
[1732242076992,0.04734763,3333.1,3331.9,0.8282]
[1732242077189,3.00036,3333.0,3332.0,0.03000608]
[1732242077515,0.0772861,3332.9,3332.1,0.8282]
[1732242077803,0.0772861,3332.9,3332.2,3.3839]
[1732242077804,0.04721782,3332.9,3332.2,3.3839]
[1732242078106,0.04721782,3332.9,3332.2,3.001]
[1732242078307,3.04761782,3332.9,3332.2,3.001]
[1732242078511,3.00049,3332.8,3332.2,3.001]
[1732242078719,3.83545828,3332.8,3332.2,3.001]
[1732242078876,3.00076,3332.5,3332.2,3.001]
[1732242079219,6.00093,3332.3,3332.2,3.001]
[1732242079725,6.85264027,3332.3,3332.2,3.001]
[1732242080070,3.85171027,3332.3,3332.2,3.001]
[1732242080272,0.04681027,3332.3,3332.2,3.001]
[1732242080467,0.04681027,3332.3,3332.2,3.38392]
[1732242080667,3.0,3332.7,3332.2,3.001]
[1732242080911,0.04523256,3332.3,3332.2,3.001]
[1732242081135,3.0,3332.9,3332.2,3.001]
[1732242081299,0.04523256,3332.3,3332.2,3.38392]
[1732242081503,2.99996,3333.4,3333.0,8.75]
[1732242081504,2.99995,3333.4,3333.0,8.75]
[1732242081807,3.00022,3333.1,3332.3,0.8282]
[1732242082107,0.04569341,3333.0,3332.3,1.249412]
[1732242082500,3.04606341,3333.0,3332.4,3.0008]
[1732242082672,3.0,3332.9,3332.4,3.0008]
[1732242082878,3.00058,3332.7,3332.4,3.0008]
[1732242083187,6.00075,3332.5,3332.4,3.0008]
[1732242083497,3.0453977,3332.5,3332.4,3.0008]
[1732242083687,3.0461477,3332.5,3332.4,3.0008]
[1732242083885,0.0453977,3332.5,3332.4,3.0008]
[1732242084406,3.0453977,3332.5,3332.4,3.0008]
[1732242085897,6.0461477,3332.5,3332.4,3.0008]
[1732242086073,0.0453977,3332.5,3332.4,3.0008]
[1732242086275,6.0461477,3332.5,3332.4,3.0008]
[1732242086977,9.62089065,3332.5,3332.4,3.0008]
[1732242087605,6.62014065,3332.5,3332.4,3.0008]
[1732242087912,0.0453977,3332.5,3332.4,3.0008]
[1732242088211,3.0,3332.9,3332.4,3.0008]
[1732242088428,0.04402539,3332.8,3332.4,3.0008]
[1732242088714,3.0,3332.7,3332.4,3.0008]
[1732242088920,3.0,3332.7,3332.5,0.2997]
[1732242089275,0.04242765,3332.6,3332.5,0.2997]
[1732242089479,6.04308765,3332.6,3332.5,0.2997]
[1732242089707,0.04242765,3332.6,3332.5,0.2997]
[1732242089881,3.0,3332.9,3332.5,0.2997]
[1732242090406,3.0,3332.9,3332.7,0.2997]
[1732242090811,3.0,3332.9,3332.8,3.25764371]
[1732242091813,3.03913375,3332.9,3332.8,3.25764371]
[1732242093416,6.03952375,3332.9,3332.8,3.25764371]
[1732242093623,6.84762375,3332.9,3332.8,3.25764371]
[1732242094115,3.03913375,3332.9,3332.8,3.25764371]
[1732242094926,6.06959203,3332.9,3332.8,3.25764371]
[1732242095415,6.03952375,3332.9,3332.8,3.25764371]
[1732242095781,6.84762375,3332.9,3332.8,3.25764371]
[1732242098030,3.03913375,3332.9,3332.8,3.25764371]
[1732242098465,6.03952375,3332.9,3332.8,3.25764371]
[1732242098637,6.06959203,3332.9,3332.8,3.25764371]
[1732242098963,3.03913375,3332.9,3332.8,3.25764371]
[1732242099258,6.03952375,3332.9,3332.8,3.25764371]
[1732242106206,3.03913375,3332.9,3332.8,3.25764371]
[1732242106345,0.03913375,3332.9,3332.8,4.08714371]
[1732242106764,3.0,3333.2,3332.8,4.08714371]
[1732242106991,0.03800746,3332.9,3332.8,4.08714371]
[1732242107171,3.00024,3333.1,3332.8,4.08714371]
[1732242107355,0.03800746,3332.9,3332.8,4.08714371]
[1732242107681,0.03800966,3332.9,3332.8,4.08714371]
[1732242108150,6.03839966,3332.9,3332.8,3.25764371]
[1732242111697,3.03800966,3332.9,3332.8,3.25764371]
[1732242111897,6.03839966,3332.9,3332.8,3.25764371]
[1732242112309,3.03800966,3332.9,3332.8,3.25764371]
[1732242112814,6.03839966,3332.9,3332.8,3.25764371]
[1732242114917,3.0,3332.5,3331.9,1.1292]
[1732242115084,3.00076,3332.5,3331.9,1.1292]
[1732242115284,0.03646113,3332.4,3331.9,1.1292]
[1732242116735,0.03646113,3332.4,3331.3,0.2997]
[1732242117009,0.03646113,3332.4,3331.7,0.2997]
[1732242117215,0.03646113,3332.4,3332.1,0.2997]
[1732242117418,3.0,3332.9,3332.3,0.2997]
[1732242117615,3.0,3332.9,3331.1,0.01]
[1732242117616,3.0,3333.1,3332.5,0.2997]
[1732242117978,3.0,3333.3,3332.7,0.2997]
[1732242118410,0.03698043,3333.2,3332.9,0.2997]
[1732242118612,0.03698043,3333.2,3332.6,0.8295]
[1732242118613,0.03698043,3333.2,3333.0,3.3]
[1732242118816,3.57474295,3333.4,3333.1,0.8295]
[1732242118997,0.1562366,3333.7,3333.1,1.1292]
[1732242119306,3.1559066,3333.7,3333.3,0.2997]
[1732242119605,2.99967,3333.7,3333.4,2.9999]
[1732242119905,2.99985,3333.5,3333.4,2.9999]
[1732242120116,5.99985,3333.5,3333.4,2.9999]
[1732242120288,6.80261828,3333.5,3333.4,2.9999]
[1732242120486,7.32255,3333.5,3333.4,2.78636592]
[1732242121317,3.00078,3332.5,3332.1,0.8295]
[1732242121488,3.0007,3332.6,3332.2,0.2997]
[1732242121687,3.0007,3332.6,3332.2,0.293725]
[1732242121889,0.03652646,3332.5,3332.2,0.293725]
[1732242122615,3.00066,3332.6,3332.2,0.293725]
[1732242122791,0.03646153,3332.4,3332.2,0.293725]
[1732242122992,3.00066,3332.6,3332.2,0.293725]
[1732242123232,0.0363966,3332.3,3332.2,0.293725]
[1732242123432,3.00058,3332.7,3332.2,0.293725]
[1732242123644,0.03534357,3332.3,3332.2,0.293725]
[1732242123992,6.57523295,3332.8,3332.1,0.8295]
[1732242124196,0.03534357,3332.3,3332.1,0.8295]
[1732242124533,3.7729,3333.2,3332.1,1.1292]
[1732242124534,0.03527863,3332.2,3332.1,1.1292]
[1732242124740,3.00126,3332.0,3331.8,0.8295]
[1732242124944,3.00126,3332.0,3331.8,1.1292]
[1732242125235,0.03508381,3331.9,3331.8,1.1292]
[1732242125923,3.00102,3332.2,3331.8,1.1292]
[1732242126770,0.0352137,3332.1,3331.8,1.1292]
[1732242127552,6.00093,3332.3,3331.9,3.0013]
[1732242127759,0.03514875,3332.0,3331.9,3.0013]
[1732242128125,3.00102,3332.2,3331.9,3.0013]
[1732242128365,0.03513813,3332.0,3331.9,3.0013]
[1732242128527,3.00102,3332.2,3331.9,3.0013]
[1732242128727,0.03513813,3332.0,3331.9,3.0013]
[1732242128970,3.00102,3332.2,3331.9,3.0013]
[1732242129176,0.03513813,3332.0,3331.9,3.0013]
[1732242129329,3.0,3332.5,3331.9,4.1305]
[1732242129530,0.0351271,3332.0,3331.9,4.1305]
[1732242129777,3.0,3332.3,3331.9,4.1305]
[1732242130063,3.03006828,3332.3,3331.9,3.8308]
[1732242130265,0.03525821,3332.2,3331.9,3.8308]